{"text_format":"1","workbook":"xlsx","n_sheets":4,"sheets":["Sheet1 (2)","Sheet1","Sheet2","Sheet3"],"not_rendered":{"charts":0,"images":16,"macros":1,"external_links":0,"defined_names":0,"comments":0,"pivot_tables":0},"unopened":[],"bounds":{"document_bytes":16777216,"sheet_cells":100000,"rows_first":2000,"rows_last":500,"rows_between":2000,"halvings":0,"cell_chars":16384,"cell_head_chars":4096},"cells_cut":0,"cells_raw":0,"read":"whole","date_system":"1900"}

{"sheet":"Sheet1 (2)","index":0,"n_rows":26,"n_cols":22,"rows_kept":26,"cut":false,"hidden":false,"merged":[[25,21,25,23],[23,0,23,4],[23,5,23,8],[23,9,23,13],[23,14,23,19],[23,21,23,23],[24,0,24,5],[24,6,24,10],[24,11,24,19],[24,20,24,23],[21,0,21,2],[21,3,21,7],[21,8,21,10],[21,11,21,19],[21,21,21,23],[22,0,22,5],[22,11,22,13],[22,14,22,16],[22,17,22,19],[22,20,22,23],[19,0,19,4],[19,5,19,7],[19,8,19,10],[19,11,19,19],[19,21,19,23],[20,0,20,5],[20,6,20,10],[20,11,20,19],[20,20,20,23],[17,0,17,3],[17,4,17,9],[17,10,17,13],[17,14,17,19],[17,21,17,23],[18,0,18,2],[18,3,18,8],[18,9,18,12],[18,13,18,19],[18,20,18,23],[14,0,14,3],[14,4,14,10],[14,21,14,23],[15,0,15,5],[15,21,15,23],[16,0,16,5],[16,6,16,8],[16,9,16,19],[16,20,16,23],[12,0,12,4],[12,5,12,7],[12,8,12,10],[12,11,12,19],[12,21,12,23],[13,0,13,4],[13,5,13,7],[13,8,13,11],[13,15,13,19],[13,20,13,23],[10,0,10,3],[10,4,10,9],[10,10,10,13],[10,14,10,19],[10,21,10,23],[11,0,11,2],[11,3,11,8],[11,9,11,12],[11,13,11,19],[11,20,11,23],[8,0,8,4],[8,5,8,7],[8,8,8,10],[8,11,8,19],[8,21,8,23],[9,0,9,5],[9,6,9,8],[9,9,9,19],[9,20,9,23],[6,0,6,3],[6,4,6,9],[6,10,6,13],[6,14,6,19],[6,21,6,23],[7,0,7,2],[7,3,7,8],[7,9,7,12],[7,13,7,19],[7,20,7,23],[4,0,4,6],[4,21,4,23],[5,0,5,5],[5,6,5,8],[5,9,5,19],[5,20,5,23],[0,0,3,7],[0,8,1,23],[2,8,2,11],[2,12,2,23],[3,8,3,10],[3,11,3,15],[3,16,3,17],[3,18,3,23]]}
[null,null,null,null,null,null,null,null,"Bluestem Domestics Specification Addendum "]
[]
[null,null,null,null,null,null,null,null,"Pattern Name:"]
[null,null,null,null,null,null,null,null,"Model #:",null,null,null,null,null,null,null,"Date:"]
["Comforter Specifications:",null,null,null,null,null,null,null,null,null,null,null,null,null,null,null,null,null,null,null,"Dimensions\nof Comforter","Cost per Piece"]
["Top of comforter specs:",null,null,null,null,null,"Top Material(s)",null,null,null,null,null,null,null,null,null,null,null,null,null,"Twin"]
["Material(s) weight:",null,null,null,null,null,null,null,null,null,"Filament Size:",null,null,null,null,null,null,null,null,null,null,0]
["Denier Sizes:",null,null,null,null,null,null,null,null,"Thread Count:",null,null,null,null,null,null,null,null,null,null,"Full"]
["Number of Brushing:",null,null,null,null,null,null,null,"Type of Dye:",null,null,null,null,null,null,null,null,null,null,null,null,0]
["Reverse of comforter specs:",null,null,null,null,null,"Reverse Material",null,null,null,null,null,null,null,null,null,null,null,null,null,"Queen / F/Q"]
["Material weight:",null,null,null,null,null,null,null,null,null,"Filament Size:",null,null,null,null,null,null,null,null,null,null,0]
["Denier Sizes:",null,null,null,null,null,null,null,null,"Thread Count:",null,null,null,null,null,null,null,null,null,null,"King"]
["Number of Brushing:",null,null,null,null,null,null,null,"Type of Dye:",null,null,null,null,null,null,null,null,null,null,null,null,0]
["Comforter fill specs:",null,null,null,null,"Type of Fill:",null,null,null,null,null,null,"Denier of Fill:",null,null,null,null,null,null,null,"California King"]
["Weight of fill:",null,null,null,null,null,null,null,null,null,null,null,null,null,null,null,null,null,null,null,null,0]
["Sheeting Specifications:",null,null,null,null,null,null,null,null,null,null,null,null,null,null,null,null,null,null,null,"Dimensions \nof Top Sheet","Cost per \nSheet Set"]
["Sheeting Material Specs:",null,null,null,null,null,"Material:",null,null,null,null,null,null,null,null,null,null,null,null,null,"Twin"]
["Material(s) weight:",null,null,null,null,null,null,null,null,null,"Filament Size:",null,null,null,null,null,null,null,null,null,null,0]
["Denier Sizes:",null,null,null,null,null,null,null,null,"Thread Count:",null,null,null,null,null,null,null,null,null,null,"Full"]
["Number of Brushing:",null,null,null,null,null,null,null,"Type of Dye:",null,null,null,null,null,null,null,null,null,null,null,null,0]
["Flat Sheet Construction:",null,null,null,null,null,"Width of Top Hem:",null,null,null,null,null,null,null,null,null,null,null,null,null,"Queen / F/Q"]
["Side Hem:",null,null,null,null,null,null,null,"Bottom Hem:",null,null,null,null,null,null,null,null,null,null,null,null,0]
["Fitted Sheet Construction:",null,null,null,null,null,"Actual Pocket Depth:",null,null,null,null,null,null,null,"Fits Up Yo:",null,null,null,null,null,"King"]
["Type of Corner Fitting:",null,null,null,null,null,null,null,null,"Width of Fitted Hem: ",null,null,null,null,null,null,null,null,null,null,null,0]
["Pillow Case Construction:",null,null,null,null,null,"Width of Top Hem:",null,null,null,null,null,null,null,null,null,null,null,null,null,"California King"]
[null,null,null,null,null,null,null,null,null,null,null,null,null,null,null,null,null,null,null,null,null,0]

{"sheet":"Sheet1","index":1,"n_rows":95,"n_cols":38,"rows_kept":95,"cut":false,"hidden":false,"merged":[[92,1,92,3],[92,4,92,24],[91,1,91,9],[91,10,91,24],[21,1,21,4],[22,15,22,17],[53,18,53,24],[54,1,54,3],[54,4,54,8],[54,9,54,11],[54,12,54,16],[54,17,54,24],[74,3,74,21],[60,1,60,24],[59,6,59,9],[65,6,65,11],[65,12,65,13],[65,20,65,21],[65,22,65,24],[66,3,66,5],[66,6,66,11],[66,12,66,13],[66,20,66,21],[66,22,66,24],[52,8,52,10],[52,11,52,14],[52,15,52,17],[52,18,52,21],[44,12,44,13],[44,14,44,17],[44,18,44,19],[37,4,37,6],[37,7,37,8],[37,9,37,11],[22,1,22,5],[22,6,22,7],[22,8,22,11],[22,12,22,14],[22,18,22,24],[23,1,23,3],[23,4,23,8],[23,9,23,11],[23,12,23,16],[23,17,23,24],[21,8,21,10],[21,11,21,14],[90,1,90,4],[90,13,90,17],[61,7,61,13],[61,14,61,16],[61,17,61,20],[61,21,61,24],[74,22,74,24],[63,3,63,5],[63,6,63,11],[63,12,63,13],[63,20,63,21],[63,22,63,24],[64,3,64,5],[64,6,64,11],[64,12,64,13],[64,20,64,21],[64,22,64,24],[63,17,63,19],[64,17,64,19],[65,3,65,5],[68,8,68,10],[68,11,68,13],[37,12,37,13],[37,14,37,17],[37,18,37,19],[37,1,37,3],[36,20,36,24],[40,3,40,5],[40,6,40,11],[40,12,40,13],[38,3,38,5],[39,20,39,21],[39,22,39,24],[38,14,38,17],[38,6,38,11],[38,12,38,13],[38,18,38,19],[37,20,37,21],[37,22,37,24],[40,14,40,17],[40,18,40,19],[34,22,34,24],[36,3,36,5],[36,6,36,11],[36,12,36,13],[35,1,35,5],[35,6,35,9],[35,10,35,14],[35,15,35,18],[35,19,35,24],[36,18,36,19],[30,12,30,17],[27,1,27,3],[32,12,32,17],[32,18,32,19],[34,1,34,4],[34,5,34,7],[34,8,34,10],[34,11,34,14],[34,15,34,17],[34,18,34,21],[13,21,13,24],[14,21,17,24],[13,13,13,16],[14,13,17,16],[19,22,19,24],[18,22,18,24],[18,20,18,21],[19,20,19,21],[13,17,13,20],[14,17,17,20],[13,1,13,4],[14,5,17,8],[14,1,17,4],[5,9,5,12],[6,9,6,12],[7,9,7,12],[12,9,12,12],[9,9,9,12],[8,9,8,12],[13,9,13,12],[6,5,6,8],[7,5,7,8],[12,5,12,8],[9,5,9,8],[8,5,8,8],[13,5,13,8],[14,9,17,12],[5,1,5,4],[5,5,5,8],[9,1,9,4],[8,1,8,4],[10,1,10,4],[10,5,10,8],[10,9,10,12],[12,21,12,24],[8,21,8,24],[6,1,6,4],[7,1,7,4],[12,1,12,4],[5,13,5,16],[6,13,6,16],[7,13,7,16],[12,13,12,16],[9,13,9,16],[8,13,8,16],[5,21,5,24],[7,21,7,24],[9,21,9,24],[5,17,5,20],[6,17,6,20],[7,17,7,20],[12,17,12,20],[10,13,10,16],[9,17,9,20],[10,17,10,20],[10,21,10,24],[11,1,11,4],[11,5,11,8],[0,1,3,8],[0,9,1,24],[3,9,3,11],[3,12,3,16],[3,17,3,18],[3,19,3,24],[4,5,4,8],[4,9,4,12],[4,13,4,16],[4,17,4,20],[4,21,4,24],[2,9,2,11],[2,12,2,16],[2,17,2,19],[2,20,2,24],[95,2,117,23],[94,2,94,14],[21,5,21,7],[78,22,78,24],[80,22,80,24],[82,22,82,24],[21,15,21,17],[21,18,21,21],[21,22,21,24],[26,1,26,4],[26,5,26,7],[26,11,26,14],[26,22,26,24],[26,8,26,10],[24,20,24,21],[24,22,24,24],[24,1,24,5],[29,22,29,24],[30,20,30,21],[30,22,30,24],[31,20,31,21],[31,22,31,24],[28,12,28,17],[28,18,28,19],[24,6,24,9],[24,10,24,14],[24,15,24,19],[32,20,32,21],[32,22,32,24],[26,15,26,17],[26,18,26,21],[27,4,27,7],[31,18,31,19],[28,20,28,21],[28,22,28,24],[29,20,29,21],[32,9,32,11],[28,9,28,11],[29,9,29,11],[30,9,30,11],[28,1,32,8],[27,8,27,10],[27,11,27,14],[27,15,27,19],[27,20,27,24],[31,9,31,11],[29,12,29,17],[29,18,29,19],[11,9,11,12],[11,13,11,16],[11,17,11,20],[11,21,11,24],[4,1,4,4],[6,21,6,24],[8,17,8,20],[41,22,41,24],[38,20,38,24],[40,20,40,24],[39,1,39,3],[39,4,39,6],[39,7,39,8],[39,9,39,11],[39,12,39,13],[39,14,39,17],[39,18,39,19],[41,1,41,3],[41,4,41,6],[41,7,41,8],[41,9,41,11],[30,18,30,19],[31,12,31,17],[36,14,36,17],[44,20,44,24],[43,1,43,3],[43,4,43,6],[43,7,43,8],[43,9,43,11],[43,12,43,13],[43,14,43,17],[43,18,43,19],[41,20,41,21],[44,3,44,5],[43,20,43,21],[43,22,43,24],[42,20,42,24],[44,6,44,11],[42,3,42,5],[42,6,42,11],[42,12,42,13],[42,14,42,17],[42,18,42,19],[41,12,41,13],[41,14,41,17],[41,18,41,19],[45,18,45,19],[45,20,45,21],[45,22,45,24],[62,3,62,5],[62,6,62,11],[62,12,62,13],[62,20,62,21],[62,22,62,24],[62,17,62,19],[61,1,61,3],[61,4,61,6],[58,15,58,17],[58,18,58,24],[45,1,45,3],[45,4,45,6],[45,7,45,8],[45,9,45,11],[45,12,45,13],[45,14,45,17],[58,1,58,3],[55,15,55,19],[59,15,59,19],[50,15,50,19],[50,20,50,21],[76,22,76,24],[71,8,71,10],[71,11,71,13],[71,14,71,17],[71,18,71,20],[71,21,71,24],[72,1,72,5],[72,6,72,9],[72,20,72,21],[72,22,72,24],[72,10,72,19],[71,1,71,4],[71,5,71,7],[59,22,59,24],[55,1,55,5],[55,6,55,9],[55,10,55,14],[69,1,69,4],[69,5,69,8],[69,20,69,21],[69,22,69,24],[69,9,69,19],[65,17,65,19],[66,17,66,19],[68,1,68,4],[68,5,68,7],[50,22,50,24],[49,12,49,14],[49,15,49,17],[49,18,49,24],[53,1,53,5],[53,6,53,7],[53,8,53,11],[89,1,89,4],[80,14,80,21],[82,14,82,21],[84,14,84,21],[49,1,49,3],[49,4,49,8],[49,9,49,11],[50,1,50,5],[50,6,50,9],[50,10,50,14],[68,14,68,17],[68,18,68,20],[68,21,68,24],[52,22,52,24],[58,4,58,7],[58,8,58,10],[58,11,58,14],[47,1,47,4],[47,5,47,7],[47,8,47,10],[47,11,47,14],[47,15,47,17],[47,18,47,21],[47,22,47,24],[48,1,48,5],[48,6,48,7],[48,8,48,11],[48,12,48,14],[48,15,48,17],[48,18,48,24],[53,12,53,14],[53,15,53,17],[52,1,52,4],[52,5,52,7],[86,14,86,21],[86,22,86,24],[89,5,89,24],[90,18,90,24],[90,5,90,12],[78,14,78,21],[76,14,76,21],[57,8,57,10],[57,11,57,14],[57,15,57,17],[57,18,57,21],[57,22,57,24],[84,22,84,24],[55,20,55,21],[55,22,55,24],[57,1,57,4],[57,5,57,7],[59,1,59,5],[59,10,59,14],[59,20,59,21]]}
[null,null,null,null,null,null,null,null,null,"Product Cost Breakdown/Technical Specifications"]
[null,null,null,null,null,null,null,null,null,null,null,null,null,null,null,null,null,null,null,null,null,null,null,null,null,null,null,"Select Accessories Offered in Set"]
[null,null,null,null,null,null,null,null,null,"Product Descrption:",null,null,null,null,null,null,null,"Vendor Name:",null,null,null,null,null,null,null,null,null,null,"Decorative Pillow",null,null,null,null,null,null,"Material A"]
[null,null,null,null,null,null,null,null,null,"Style #:",null,null,null,null,null,null,null,"Date:",null,null,null,null,null,null,null,null,null,null,"Slippers/Booties (select sizes below)",null,null,null,null,null,null,"Material B"]
[null,"(complete all that apply to material type)",null,null,null,"Material A",null,null,null,"Material B",null,null,null,"Material C",null,null,null,"Material D",null,null,null,"Material E",null,null,null,null,null,null,"Robe (select sizes below)",null,null,null,null,null,null,"Material D"]
[null,"Material Type:",null,null,null,null,null,null,null,null,null,null,null,null,null,null,null,null,null,null,null,null,null,null,null,null,null,null,"Body Pillow",null,null,null,null,null,null,"Material E"]
[null,"Material Weight:",null,null,null,null,null,null,null,null,null,null,null,null,null,null,null,null,null,null,null,null,null,null,null,null,null,null,"Back Rest"]
[null,"Filament Size:",null,null,null,null,null,null,null,null,null,null,null,null,null,null,null,null,null,null,null,null,null,null,null,null,null,null,"Socks (select sizes below)"]
[null,"Number of Brushings:",null,null,null,null,null,null,null,null,null,null,null,null,null,null,null,null,null,null,null,null,null,null,null,null,null,null,"Travel Pillow"]
[null,"Thread Count:",null,null,null,null,null,null,null,null,null,null,null,null,null,null,null,null,null,null,null,null,null,null,null,null,null,null,"Eye Mask"]
[null,"Pics and Ends:",null,null,null,null,null,null,null,null,null,null,null,null,null,null,null,null,null,null,null,null,null,null,null,null,null,null,"Bean Bag"]
[null,"Type of Weave:",null,null,null,null,null,null,null,null,null,null,null,null,null,null,null,null,null,null,null,null,null,null,null,null,null,null,"Select Accessory Sizes Offered"]
[null,"Denier Size:",null,null,null,null,null,null,null,null,null,null,null,null,null,null,null,null,null,null,null,null,null,null,null,null,null,null,null,"Small"]
[null,"Type of Dye Process:",null,null,null,null,null,null,null,null,null,null,null,null,null,null,null,null,null,null,null,null,null,null,null,null,null,null,null,"Medium or Small/Medium"]
[null,"List Where Material is Used in Set:",null,null,null,null,null,null,null,null,null,null,null,null,null,null,null,null,null,null,null,null,null,null,null,null,null,null,null,"Large"]
[null,null,null,null,null,null,null,null,null,null,null,null,null,null,null,null,null,null,null,null,null,null,null,null,null,null,null,null,null,"X-Large or Large/X-large"]
[null,null,null,null,null,null,null,null,null,null,null,null,null,null,null,null,null,null,null,null,null,null,null,null,null,null,null,null,null,"One Size Fits All"]
[]
[null,"SELECT PRODUCT ON RIGHT AND SIZES IF ANY",null,null,null,null,null,null,null,null,null,null,null,null,null,null,null,null,null,null,"Number",null,"List the Cost"]
[null,"COMPLETE ALL APPLICABLE QUESTIONS BELOW FOR PRODUCT(S) SELECTED",null,null,null,null,null,null,null,null,null,null,null,null,null,null,null,null,null,null,"of Pcs",null,"Per Piece"]
[null,"Decorative Pillow",null,null,null,null,null,null,null,null,null,null,null,null,null,null,null,null,null,null,null,null,null,null,null,null,{"$f":"#REF!*#REF!","v":{"$error":"#REF!"}}]
[null,"Pillow Material(s):",null,null,null,null,null,null,null,null,null,"Reverse Material:",null,null,null,null,null,null,"Trim Material:"]
[null,"Is Cover Removeable:",null,null,null,null,null,null,"Liner Material:",null,null,null,null,null,null,"Dimensions: "]
[null,"Fill Type:",null,null,null,null,null,null,null,"Fill Weight:"]
[null,"Care Label Material:",null,null,null,null,null,null,null,null,"Care Label Placement:",null,null,null,null,null,null,null,null,null,0,null,0,null,null,null,null,null,null,null,null,null,null,null,null,null,"Dec",{"$f":"U25*W25","v":0}]
[null,"Slipper/Booties",null,null,null,null,null,null,null,null,null,null,null,null,null,null,null,null,null,null,null,null,null,null,null,null,{"$f":"U25*W25","v":0}]
[null,"Upper Material(s):",null,null,null,null,null,null,null,null,null,"Liner Material:",null,null,null,null,null,null,"Sole Material:"]
[null,"Fill Type:",null,null,null,null,null,null,"Fill Weight:",null,null,null,null,null,null,"Care Label Material :"]
[null,null,null,null,null,null,null,null,null,"Small ",null,null,"Equal to U.S. Womans Size:",null,null,null,null,null,null,null,0,null,0,null,null,null,null,null,null,null,null,null,null,null,null,null,"S Slip",{"$f":"U29*W29","v":0}]
[null,null,null,null,null,null,null,null,null,"Medium or S/M",null,null,"Equal to U.S. Womans Size:",null,null,null,null,null,null,null,0,null,0,null,null,null,{"$f":"U29*W29","v":0},null,null,null,null,null,null,null,null,null,"M Slip",{"$f":"U30*W30","v":0}]
[null,null,null,null,null,null,null,null,null,"Large",null,null,"Equal to U.S. Womans Size:",null,null,null,null,null,null,null,0,null,0,null,null,null,{"$f":"U30*W30","v":0},null,null,null,null,null,null,null,null,null,"L Slip",{"$f":"U31*W31","v":0}]
[null,null,null,null,null,null,null,null,null,"X-Large or L/XL",null,null,"Equal to U.S. Womans Size:",null,null,null,null,null,null,null,0,null,0,null,null,null,0,null,null,null,null,null,null,null,null,null,"XL Slip",{"$f":"U32*W32","v":0}]
[null,null,null,null,null,null,null,null,null,"One Size",null,null,"Equal to U.S. Womans Size:",null,null,null,null,null,null,null,0,null,0,null,null,null,0,null,null,null,null,null,null,null,null,null,"1sz slip",{"$f":"U33*W33","v":0}]
[null,"Robe",null,null,null,null,null,null,null,null,null,null,null,null,null,null,null,null,null,null,null,null,null,null,null,null,0]
[null,"Material(s):",null,null,null,null,null,null,null,null,null,"Liner Material:",null,null,null,null,null,null,"Trim Material:"]
[null,"Care Label Material:",null,null,null,null,null,null,null,null,"Care Label Placement:"]
[null,null,null,"Small ",null,null,"Equal to U.S. Womans Dress Size:",null,null,null,null,null,null,null,"Center Back Length:"]
[null,null,null,null,"Chest Inches:",null,null,null,null,"Hip Inches:",null,null,null,null,"Arm Length Inches:",null,null,null,null,null,0,null,0,null,null,null,null,null,null,null,null,null,null,null,null,null,"s rb",{"$f":"U38*W38","v":0}]
[null,null,null,"Medium or S/M",null,null,"Equal to U.S. Womans Dress Size:",null,null,null,null,null,null,null,"Center Back Length:",null,null,null,null,null,null,null,null,null,null,null,{"$f":"U38*W38","v":0}]
[null,null,null,null,"Chest Inches:",null,null,null,null,"Hip Inches:",null,null,null,null,"Arm Length Inches:",null,null,null,null,null,0,null,0,null,null,null,null,null,null,null,null,null,null,null,null,null,"m rb",{"$f":"U40*W40","v":0}]
[null,null,null,"Large",null,null,"Equal to U.S. Womans Dress Size:",null,null,null,null,null,null,null,"Center Back Length:",null,null,null,null,null,null,null,null,null,null,null,{"$f":"U40*W40","v":0}]
[null,null,null,null,"Chest Inches:",null,null,null,null,"Hip Inches:",null,null,null,null,"Arm Length Inches:",null,null,null,null,null,0,null,0,null,null,null,null,null,null,null,null,null,null,null,null,null,"l rb",{"$f":"U42*W42","v":0}]
[null,null,null,"X-Large or L/XL",null,null,"Equal to U.S. Womans Dress Size:",null,null,null,null,null,null,null,"Center Back Length:",null,null,null,null,null,null,null,null,null,null,null,0]
[null,null,null,null,"Chest Inches:",null,null,null,null,"Hip Inches:",null,null,null,null,"Arm Length Inches:",null,null,null,null,null,0,null,0,null,null,null,null,null,null,null,null,null,null,null,null,null,"xl rb",{"$f":"U44*W44","v":0}]
[null,null,null,"One Size",null,null,"Equal to U.S. Womans Dress Size:",null,null,null,null,null,null,null,"Center Back Length:",null,null,null,null,null,null,null,null,null,null,null,0]
[null,null,null,null,"Chest Inches:",null,null,null,null,"Hip Inches:",null,null,null,null,"Arm Length Inches:",null,null,null,null,null,0,null,0,null,null,null,null,null,null,null,null,null,null,null,null,null,"1sz rb",{"$f":"U46*W46","v":0}]
[null,"Bean Bag",null,null,null,null,null,null,null,null,null,null,null,null,null,null,null,null,null,null,null,null,null,null,null,null,{"$f":"U41*W41","v":0}]
[null,"Shell Material(s):",null,null,null,null,null,null,null,null,null,"Is bean Bag Lined:",null,null,null,null,null,null,"Trim Material:"]
[null,"Is Cover Removeable:",null,null,null,null,null,null,"Liner Material:",null,null,null,null,null,null,"Dimensions: "]
[null,"Fill Type:",null,null,null,null,null,null,null,"Fill Weight:",null,null,null,null,null,"Type of Seam:"]
[null,"Care Label Material:",null,null,null,null,null,null,null,null,"Care Label Placement:",null,null,null,null,null,null,null,null,null,0,null,0,null,null,null,null,null,null,null,null,null,null,null,null,null,"BB",{"$f":"U51*W51","v":0}]
[null,"Body Pillow",null,null,null,null,null,null,null,null,null,null,null,null,null,null,null,null,null,null,null,null,null,null,null,null,{"$f":"U46*W46","v":0}]
[null,"Pillow Material(s):",null,null,null,null,null,null,null,null,null,"Reverse Material:",null,null,null,null,null,null,"Trim Material:"]
[null,"Is Cover Removeable:",null,null,null,null,null,null,"Liner Material:",null,null,null,null,null,null,"Dimensions: "]
[null,"Fill Type:",null,null,null,null,null,null,null,"Fill Weight:"]
[null,"Care Label Material:",null,null,null,null,null,null,null,null,"Care Label Placement:",null,null,null,null,null,null,null,null,null,0,null,0,null,null,null,null,null,null,null,null,null,null,null,null,null,"BP",{"$f":"U56*W56","v":0}]
[null,"Back Rest",null,null,null,null,null,null,null,null,null,null,null,null,null,null,null,null,null,null,null,null,null,null,null,null,{"$f":"U56*W56","v":0}]
[null,"Material(s):",null,null,null,null,null,null,null,null,null,"Liner Material:",null,null,null,null,null,null,"Trim Material:"]
[null,"Fill Type:",null,null,null,null,null,null,"Fill Weight:",null,null,null,null,null,null,"All Dimensions:"]
[null,"Care Label Material:",null,null,null,null,null,null,null,null,"Care Label Placement:",null,null,null,null,null,null,null,null,null,0,null,0,null,null,null,null,null,null,null,null,null,null,null,null,null,"BR",{"$f":"U60*W60","v":0}]
[null,"Socks",null,null,null,null,null,null,null,null,null,null,null,null,null,null,null,null,null,null,null,null,null,null,null,null,{"$f":"U60*W60","v":0}]
[null,"Material:",null,null,null,null,null,"Non-Skid Coating On Bottom? ",null,null,null,null,null,null,null,null,null,"Non-Skid Material:"]
[null,null,null,"Small ",null,null,"Equal to U.S. Womans Size:",null,null,null,null,null,null,null,"Total Length:",null,null,null,null,null,0,null,0,null,null,null,null,null,null,null,null,null,null,null,null,null,"s sk",{"$f":"U63*W63","v":0}]
[null,null,null,"Medium or S/M",null,null,"Equal to U.S. Womans Size:",null,null,null,null,null,null,null,"Total Length:",null,null,null,null,null,0,null,0,null,null,null,{"$f":"U63*W63","v":0},null,null,null,null,null,null,null,null,null,"m sk",{"$f":"U64*W64","v":0}]
[null,null,null,"Large",null,null,"Equal to U.S. Womans Size:",null,null,null,null,null,null,null,"Total Length:",null,null,null,null,null,0,null,0,null,null,null,{"$f":"U64*W64","v":0},null,null,null,null,null,null,null,null,null,"l sk",{"$f":"U65*W65","v":0}]
[null,null,null,"X-Large or L/XL",null,null,"Equal to U.S. Womans Size:",null,null,null,null,null,null,null,"Total Length:",null,null,null,null,null,0,null,0,null,null,null,0,null,null,null,null,null,null,null,null,null,"xl sk",{"$f":"U66*W66","v":0}]
[null,null,null,"One Size",null,null,"Equal to U.S. Womans Size:",null,null,null,null,null,null,null,"Total Length:",null,null,null,null,null,0,null,0,null,null,null,0,null,null,null,null,null,null,null,null,null,"1sz sk",{"$f":"U67*W67","v":0}]
[null,"Travel Pillow",null,null,null,null,null,null,null,null,null,null,null,null,null,null,null,null,null,null,null,null,null,null,null,null,0]
[null,"Material(s):",null,null,null,null,null,null,null,null,null,"Fill Type:",null,null,null,null,null,null,"Fill Weight:"]
[null,"Pillow Dimensions:",null,null,null,null,null,null,null,null,null,null,null,null,null,null,null,null,null,null,0,null,0,null,null,null,null,null,null,null,null,null,null,null,null,null,"TP",{"$f":"U70*W70","v":0}]
[null,"Eye Mask",null,null,null,null,null,null,null,null,null,null,null,null,null,null,null,null,null,null,null,null,null,null,null,null,{"$f":"U70*W70","v":0}]
[null,"Material(s):",null,null,null,null,null,null,null,null,null,"Fill Type:",null,null,null,null,null,null,"Fill Weight:"]
[null,"Head Strap Material:",null,null,null,null,null,null,null,null,null,null,null,null,null,null,null,null,null,null,0,null,0,null,null,null,null,null,null,null,null,null,null,null,null,null,"EM",{"$f":"U73*W73","v":0}]
[null,null,null,null,null,null,null,null,null,null,null,null,null,null,null,null,null,null,null,null,null,null,null,null,null,null,{"$f":"U73*W73","v":0}]
[null,null,null,"Estimated added charge added to quote per item for vendor paid testing to Bluestem protocols:",null,null,null,null,null,null,null,null,null,null,null,null,null,null,null,null,null,null,0]
[]
[null,null,null,null,null,null,null,null,null,null,null,null,null,null,"Size Small Cost:",null,null,null,null,null,null,null,{"$f":"AL25+AL29+AL38+AL51+AL56+AL60+AL63+AL70+AL73+W75","v":0}]
[]
[null,null,null,null,null,null,null,null,null,null,null,null,null,null,"Size Medium or S/M Cost:",null,null,null,null,null,null,null,{"$f":"AL25+AL30+AL40+AL51+AL56+AL60+AL64+AL70+AL73+W75","v":0}]
[]
[null,null,null,null,null,null,null,null,null,null,null,null,null,null,"Size Large Cost:",null,null,null,null,null,null,null,{"$f":"AL25+AL31+AL42+AL51+AL56+AL60+AL65+AL70+AL73+W75","v":0}]
[]
[null,null,null,null,null,null,null,null,null,null,null,null,null,null,"Size X-Large or L/XL Cost:",null,null,null,null,null,null,null,{"$f":"AL25+AL32+AL44+AL51+AL56+AL60+AL66+AL70+AL73+W75","v":0}]
[]
[null,null,null,null,null,null,null,null,null,null,null,null,null,null," One Size Fits All Cost:",null,null,null,null,null,null,null,{"$f":"AL25+AL33+AL46+AL51+AL56+AL60+AL67+AL70+AL73+W75","v":0}]
[]
[null,null,null,null,null,null,null,null,null,null,null,null,null,null,"Accessories Cost:",null,null,null,null,null,null,null,{"$f":"AL27+AL35+AL48+AL53+AL58+AL62+AL69+AL72+AL75+W77","v":0}]
[]
[null,"If Accessory Information is Different from the Blanket Information listed Above Complete the Below Specs. "]
[null,"Stitched Per Inch:"]
[null,"Type of Thread:",null,null,null,null,null,null,null,null,null,null,null,"Color(s) of Thread used: "]
[null,"Pantone Colors (list color and number):"]
[null,"Other Specs:"]
[]
[null,null,"Add Image of product that shows all pattern and colors:"]

{"sheet":"Sheet2","index":2,"n_rows":0,"n_cols":0,"rows_kept":0,"cut":false,"hidden":false,"merged":[]}

{"sheet":"Sheet3","index":3,"n_rows":0,"n_cols":0,"rows_kept":0,"cut":false,"hidden":false,"merged":[]}